bitfinex-derivatives/quotes_ETHF0:USTF0_20260112
["timestamp","ask_amount","ask_price","bid_price","bid_amount"]
[1768231231620,3.58029822,3129.0,3127.6,0.16005]
[1768231231828,1.299,3128.8,3127.1,0.16008]
[1768231232027,3.58029822,3128.5,3126.6,0.1601]
[1768231232228,3.58029822,3128.4,3125.8,0.16014]
[1768231232518,3.58029822,3128.1,3126.0,0.16014]
[1768231232718,1.11496732,3128.2,3125.6,0.00350591]
[1768231232719,3.58029822,3127.7,3125.6,0.00350591]
[1768231232925,3.58029822,3127.5,3125.6,0.00350591]
[1768231233430,11.9,3127.8,3123.9,0.16024]
[1768231233431,3.58029822,3126.8,3123.9,0.16024]
[1768231233731,3.58029822,3126.6,3124.1,0.16023]
[1768231233924,3.58029822,3126.5,3123.5,3.32202427]
[1768231234124,4.108,3126.4,3123.5,3.32202427]
[1768231234431,4.108,3126.4,3123.5,3.32460338]
[1768231234634,3.02304783,3126.3,3124.3,0.16022]
[1768231234833,3.02304783,3126.3,3123.5,0.00257911]
[1768231235034,3.02304783,3126.3,3123.6,0.16026]
[1768231235230,3.27623586,3126.3,3123.6,0.16026]
[1768231235425,3.02304783,3126.1,3123.6,0.16026]
[1768231235625,3.02569961,3126.1,3123.6,0.16026]
[1768231235823,3.02304783,3125.9,3123.6,0.16026]
[1768231236328,3.02304783,3125.4,3123.5,0.00257911]
[1768231236732,3.02304783,3125.2,3123.5,0.00257911]
[1768231236926,3.02304783,3125.2,3122.7,0.1603]
[1768231237121,3.02304783,3125.0,3122.7,0.1603]
[1768231237326,3.18323783,3125.0,3122.7,0.1603]
[1768231237525,3.231,3126.2,3122.7,0.1603]
[1768231237526,3.02304783,3124.8,3122.7,0.1603]
[1768231237926,3.02304783,3124.6,3122.7,0.16274064]
[1768231238126,3.02304783,3124.5,3122.7,0.16274064]
[1768231238332,3.02304783,3125.9,3123.2,0.16028]
[1768231238532,0.16014,3126.0,3123.2,0.16028]
[1768231238533,1.11496732,3125.0,3123.2,0.16028]
[1768231238728,3.204,3124.9,3123.3,0.16027]
[1768231238936,5.43701515,3124.8,3123.3,0.16027]
[1768231239232,4.503,3124.7,3123.3,0.16027]
[1768231239434,3.02304783,3124.6,3122.7,0.00244064]
[1768231239835,3.02304783,3125.3,3122.7,0.00244064]
[1768231240131,1.11496732,3125.2,3123.3,0.16027]
[1768231240339,3.02304783,3125.1,3123.3,0.16027]
[1768231240928,3.02304783,3125.0,3123.5,0.16026]
[1768231241131,1.299,3124.9,3123.5,0.16026]
[1768231241532,2.41396732,3124.9,3123.5,0.16026]
[1768231241732,3.02304783,3124.8,3122.7,0.00244064]
[1768231241933,3.02304783,3124.8,3122.9,0.16029]
[1768231242845,3.02304783,3124.6,3122.9,0.16029]
[1768231244134,1.3,3124.5,3122.9,0.16029]
[1768231244336,3.02304783,3124.4,3122.9,0.16029]
[1768231244737,4.504,3124.3,3122.9,0.16029]
[1768231245031,4.32304783,3124.2,3122.5,0.16031]
[1768231245249,4.504,3124.1,3122.5,0.16031]
[1768231245545,3.02304783,3124.0,3122.5,0.16031]
[1768231245848,3.02304783,3124.0,3122.5,0.00280752]
[1768231246339,3.02304783,3124.0,3121.9,0.16034]
[1768231246549,3.02304783,3123.8,3122.1,0.16033]
[1768231246846,3.02304783,3123.6,3121.4,0.16037]
[1768231247046,3.02304783,3123.3,3121.4,0.16037]
[1768231247246,3.02720482,3123.3,3121.4,0.16415488]
[1768231247439,3.02304783,3122.9,3120.7,0.16041]
[1768231247640,3.02304783,3122.7,3120.7,0.16041]
[1768231247844,3.02304783,3122.3,3120.5,0.8166627]
[1768231248044,3.02304783,3122.1,3120.5,0.8166627]
[1768231248344,3.02304783,3121.9,3120.5,0.00298038]
[1768231249147,4.505,3121.8,3120.5,0.00298038]
[1768231249446,7.52804783,3121.8,3120.5,0.00298038]
[1768231249648,3.02304783,3121.7,3119.3,2.96801213]
[1768231249948,4.505,3121.6,3120.2,0.16043]
[1768231250442,1.11496732,3121.3,3120.2,0.16043]
[1768231250646,1.11496732,3121.3,3120.2,0.16384822]
[1768231251040,1.11496732,3121.3,3120.2,0.00341822]
[1768231251243,3.02304783,3121.0,3118.9,0.1605]
[1768231251633,3.02304783,3120.5,3118.9,0.1605]
[1768231251849,3.02304783,3120.3,3118.2,0.16053]
[1768231252238,3.02707971,3120.3,3118.2,0.16456595]
[1768231252644,3.02304783,3120.1,3118.2,0.16456595]
[1768231252843,3.02304783,3120.1,3118.2,0.00403595]
[1768231253152,7.52904783,3120.0,3118.3,0.16053]
[1768231253450,3.02304783,3119.9,3118.3,0.16053]
[1768231253642,3.02304783,3119.9,3118.4,0.16053]
[1768231253843,4.506,3119.8,3118.4,0.16053]
[1768231254047,1.11496732,3119.7,3118.4,0.16053]
[1768231254750,4.506,3119.6,3118.4,0.16053]
[1768231254944,1.11496732,3119.7,3118.4,0.16053]
[1768231255149,7.52904783,3119.5,3118.2,0.00403595]
[1768231255448,4.506,3119.4,3118.2,0.00403595]
[1768231255649,3.02304783,3120.1,3118.4,0.16052]
[1768231255851,3.207,3119.7,3118.4,0.16052]
[1768231256246,3.02304783,3119.9,3118.4,0.16052]
[1768231256446,1.3,3119.6,3118.2,0.00403595]
[1768231256642,3.02304783,3119.5,3117.6,0.16057]
[1768231257148,3.02304783,3119.5,3116.9,2.96801213]
[1768231257351,3.02304783,3119.3,3116.9,2.96801213]
[1768231257653,3.02304783,3119.1,3116.9,2.9717506]
[1768231257842,3.18353783,3119.1,3116.9,0.00373847]
[1768231258457,4.508,3119.0,3117.3,0.16058]
[1768231258646,3.02304783,3118.9,3117.3,0.16058]
[1768231258851,3.02304783,3118.9,3116.9,0.00373847]
[1768231259250,3.02304783,3118.9,3117.1,0.16059]
[1768231259852,3.02304783,3118.7,3117.1,0.16059]
[1768231260255,3.02304783,3118.7,3116.9,0.00373847]
[1768231260456,3.02304783,3118.5,3116.9,0.00373847]
[1768231260749,3.02304783,3118.5,3116.2,0.16064]
[1768231260958,3.02304783,3118.5,3116.8,0.16061]
[1768231261250,4.13801515,3118.3,3116.0,1.27561732]
[1768231261444,3.02304783,3118.2,3116.0,1.27561732]
[1768231261845,3.02304783,3118.0,3116.0,1.27821845]
[1768231262045,3.02680112,3118.0,3116.0,1.11756845]
[1768231262257,4.509,3117.9,3116.4,0.16063]
[1768231262456,3.02304783,3117.8,3116.4,0.16063]
[1768231262850,3.02304783,3117.8,3116.5,0.16062]
[1768231263053,0.00375329,3118.0,3116.8,0.1606]
[1768231263250,1.301,3117.9,3116.1,2.96801213]
[1768231263457,1.301,3117.9,3116.9,0.1606]
[1768231264057,1.301,3117.9,3116.2,2.96801213]
[1768231264260,2.41596732,3117.9,3116.9,0.1606]
[1768231264561,2.41596732,3117.9,3116.3,0.16063]
[1768231264747,1.11496732,3117.9,3116.3,0.16063]
[1768231264949,4.51,3117.8,3116.0,1.11756845]
[1768231265452,4.51,3117.8,3116.5,0.16062]
[1768231265653,1.301,3117.8,3116.1,2.22018557]
[1768231265859,0.00375329,3118.0,3116.1,8.22018557]
[1768231266155,1.302,3117.9,3116.9,0.1606]
[1768231266363,3.57028197,3117.9,3116.2,0.16064]
[1768231266558,2.26828197,3117.8,3116.2,0.16064]
[1768231267061,1.11872061,3118.0,3116.0,1.11756845]
[1768231267360,1.11872061,3118.0,3116.6,0.16061]
[1768231267560,2.26828197,3117.9,3116.0,1.11756845]
[1768231267857,2.26828197,3117.6,3116.0,1.11756845]
[1768231268060,2.42887197,3117.2,3115.6,0.41843]
[1768231268362,2.26828197,3117.0,3115.0,0.1607]
[1768231268663,3.21,3116.9,3115.1,0.1607]
[1768231268851,1.302,3116.8,3115.2,0.16069]
[1768231269059,1.302,3116.7,3115.8,0.16066]
[1768231269256,1.302,3116.6,3115.8,0.16066]
[1768231269661,0.00375329,3118.0,3115.9,2.22018557]
[1768231269866,1.302,3117.9,3116.5,0.16062]
[1768231270160,1.302,3117.8,3116.6,0.16062]
[1768231270361,2.26828197,3117.7,3115.8,0.16066]
[1768231271060,4.512,3117.6,3115.8,0.16066]
[1768231271560,2.26828197,3117.7,3116.0,0.16065]
[1768231271761,1.302,3117.6,3116.0,0.16065]
[1768231272064,4.512,3117.6,3116.0,0.16065]
[1768231272255,1.95596246,3117.5,3115.3,2.22018557]
[1768231272455,1.302,3117.4,3116.0,0.16065]
[1768231273558,1.302,3117.4,3115.3,2.38087557]
[1768231273559,3.25796246,3117.4,3115.3,2.38087557]
[1768231273863,1.95596246,3117.4,3115.3,2.22018557]
[1768231274065,1.95596246,3117.2,3115.2,0.00407234]
[1768231274466,4.514,3117.1,3115.2,0.00407234]
[1768231274762,1.95596246,3117.2,3115.2,0.00407234]
[1768231274956,4.514,3117.1,3115.8,0.16066]
[1768231275159,1.95596246,3117.2,3115.8,0.16066]
[1768231275458,1.139,3117.1,3116.0,0.16065]
[1768231275659,1.139,3117.1,3115.5,0.16067]
[1768231275859,1.139,3117.1,3115.7,0.16066]
[1768231276060,1.95596246,3117.3,3115.8,0.16066]
[1768231276259,4.514,3117.2,3115.8,0.16066]
[1768231276459,1.303,3117.1,3116.0,0.16065]
[1768231276675,3.25896246,3117.1,3115.3,0.16068]
[1768231276855,1.95596246,3117.0,3115.5,0.16067]
[1768231277058,4.321,3116.9,3115.6,0.16067]
[1768231277764,6.27696246,3116.9,3115.2,0.00407234]
[1768231277964,1.95596246,3116.8,3115.2,0.00407234]
[1768231278165,3.211,3117.1,3115.2,2.02292905]
[1768231278369,1.95596246,3117.5,3115.2,2.02292905]
[1768231278666,3.818,3117.4,3115.2,2.02292905]
[1768231278865,0.16430329,3118.0,3115.2,2.02292905]
[1768231279067,6.46996246,3117.9,3115.8,0.16066]
[1768231279260,6.46996246,3117.9,3116.0,0.16065]
[1768231279466,1.95596246,3117.9,3116.1,0.16064]
[1768231279669,1.95596246,3117.9,3116.2,0.16064]
[1768231279868,4.514,3117.8,3116.2,0.16064]
[1768231280059,6.46996246,3117.8,3116.2,0.16064]
[1768231280569,4.514,3117.7,3116.2,0.16064]
[1768231281165,1.95596246,3117.8,3116.2,0.16064]
[1768231281368,3.211,3117.7,3115.9,2.01885671]
[1768231281571,0.00375329,3118.0,3116.4,0.16063]
[1768231281869,4.514,3117.9,3116.4,0.16063]
[1768231282065,0.00375329,3118.0,3116.6,0.16062]
[1768231282270,1.303,3117.9,3116.6,0.16062]
[1768231282572,1.95596246,3117.8,3115.9,0.16065]
[1768231283367,1.95596246,3117.6,3115.3,2.01885671]
[1768231283573,2.11654246,3117.4,3115.2,0.16476234]
[1768231283773,1.95596246,3117.2,3115.2,0.16476234]
[1768231283973,1.95596246,3117.0,3115.2,0.00407234]
[1768231284372,4.514,3116.9,3115.2,0.16476234]
[1768231284675,1.303,3116.8,3115.2,0.16476234]
[1768231284874,6.46996246,3116.8,3115.2,0.00407234]
[1768231285074,1.95596246,3116.7,3115.2,0.00407234]
[1768231285975,4.514,3116.6,3115.2,0.16476234]
[1768231286977,3.212,3116.6,3115.2,0.16476234]
[1768231287274,1.303,3116.5,3115.2,0.16476234]
[1768231289879,1.95596246,3116.7,3115.2,0.16476234]
[1768231290075,1.95596246,3116.7,3115.3,0.16069]
[1768231290275,1.303,3116.6,3115.3,0.16069]
[1768231290674,1.95596246,3116.5,3115.2,0.00407234]
[1768231290881,1.95596246,3116.5,3114.0,2.01885671]
[1768231291072,5.17096246,3116.5,3114.4,0.16073]
[1768231291384,2.11659246,3116.4,3114.4,0.16073]
[1768231291983,2.11659246,3116.4,3114.4,0.16309565]
[1768231292175,1.95596246,3116.2,3114.4,0.16309565]
[1768231292376,2.11660246,3116.2,3114.4,0.00236565]
[1768231292576,1.95596246,3116.0,3114.4,0.00236565]
[1768231293468,2.11661246,3116.0,3114.4,0.00236565]
[1768231296778,1.95596246,3116.0,3114.4,0.00236565]
[1768231296979,1.49584106,3116.6,3114.8,0.16071]
[1768231297286,0.826,3116.5,3115.0,0.1607]
[1768231297585,0.826,3116.4,3115.0,0.1607]
[1768231298979,1.49584106,3116.3,3114.4,0.00236565]
[1768231299381,1.49584106,3116.3,3114.4,1.57040833]
[1768231299580,4.516,3116.2,3114.4,1.57040833]
[1768231299983,1.49584106,3116.1,3114.6,0.16072]
[1768231300183,1.49584106,3116.1,3114.4,0.00236565]
[1768231300384,1.65650106,3115.9,3114.4,0.00236565]
[1768231301178,1.49584106,3115.9,3114.4,0.00236565]
[1768231301384,4.517,3115.8,3114.4,0.00236565]
[1768231301586,4.51955944,3115.8,3114.4,0.00236565]
[1768231302086,1.49584106,3115.7,3114.4,0.00236565]
[1768231302277,1.65651106,3115.7,3113.5,0.16078]
[1768231302583,0.16067,3115.6,3113.5,0.16078]
[1768231302882,1.65652106,3115.5,3113.1,1.56804268]
[1768231303183,1.49584106,3115.3,3113.1,1.56804268]
[1768231303376,1.49584106,3115.3,3113.1,1.57040904]
[1768231303781,4.029,3115.2,3113.6,0.16077]
[1768231304485,0.00255944,3115.8,3113.7,0.16077]
[1768231304691,3.213,3115.3,3113.4,1.56804268]
[1768231304984,3.213,3115.3,3113.1,0.00236636]
[1768231304985,1.304,3115.7,3114.0,1.56804268]
[1768231305185,1.304,3115.7,3114.3,0.16073]
[1768231305482,1.49584106,3115.6,3113.2,1.56804268]
[1768231305678,4.517,3115.5,3113.9,0.16076]
[1768231305885,0.00255944,3115.8,3113.7,1.56804268]
[1768231306081,0.00255944,3115.8,3114.3,0.16074]
[1768231306082,0.614,3115.7,3114.3,0.16074]
[1768231306471,0.00255944,3115.8,3114.5,0.16073]
[1768231308980,0.00255944,3115.8,3114.2,1.56804268]
[1768231309188,0.00255944,3115.8,3115.0,0.1607]
[1768231309374,0.00255944,3115.8,3114.3,1.72877268]
[1768231309779,0.00255944,3115.8,3114.3,0.16073]
[1768231310988,1.49584106,3115.1,3113.1,0.00236636]
[1768231311190,6.01284106,3115.0,3113.1,0.00236636]
[1768231311582,4.71084106,3114.9,3113.1,0.00236636]
[1768231311793,4.517,3114.8,3113.1,0.00236636]
[1768231312990,1.49584106,3114.9,3113.1,0.00236636]
[1768231313195,1.304,3114.7,3113.1,0.00236636]
[1768231313394,1.304,3114.6,3113.1,0.00236636]
[1768231313893,1.49584106,3114.9,3113.2,0.16079]
[1768231314080,4.517,3114.8,3113.2,0.16079]
[1768231314893,6.01284106,3114.8,3113.1,0.00236636]
[1768231315089,1.49584106,3114.7,3113.1,0.00236636]
[1768231315793,4.517,3114.6,3113.1,0.00236636]
[1768231316894,1.49584106,3114.5,3113.1,0.00236636]
[1768231317795,7.65657106,3114.5,3113.1,0.00236636]
[1768231318090,1.49584106,3114.4,3113.1,0.00236636]
[1768231318494,4.519,3114.3,3113.1,0.00236636]
[1768231318888,6.01484106,3114.3,3113.1,0.00236636]
[1768231319288,1.49584106,3114.3,3113.1,0.00236636]
[1768231319592,4.519,3114.2,3113.1,0.00236636]
[1768231319794,6.01484106,3114.2,3112.5,0.16083]
[1768231320495,0.16072,3114.6,3112.5,1.72887268]
[1768231320683,1.305,3114.5,3113.3,1.98068917]
[1768231320990,1.49584106,3114.8,3113.2,0.16079]
[1768231321196,1.305,3114.7,3113.3,0.16079]
[1768231321495,1.49584106,3115.3,3113.3,0.16079]
[1768231321713,3.214,3115.2,3113.9,0.16076]
[1768231321888,1.4984005,3115.8,3113.9,0.16076]
[1768231322196,4.519,3115.7,3113.9,0.16076]
[1768231322382,1.49584106,3115.6,3113.3,1.72883268]
[1768231322797,1.65651106,3115.6,3113.3,1.72883268]
[1768231322998,1.49584106,3115.4,3113.3,0.16079]
[1768231323400,4.519,3115.3,3113.3,0.16079]
[1768231323800,1.49584106,3115.2,3113.3,0.16079]
[1768231324702,4.519,3115.1,3113.3,0.16079]
[1768231325101,1.12306517,3115.7,3113.6,1.3154715]
[1768231325398,1.12306517,3115.5,3112.9,1.1547015]
[1768231325595,1.12306517,3115.5,3113.3,1.98068917]
[1768231325794,1.12306517,3115.5,3113.3,3.13539067]
[1768231326505,4.519,3115.4,3113.6,1.1547015]
[1768231326701,4.519,3115.3,3113.7,0.16077]
[1768231326899,5.64206517,3115.3,3113.7,0.16077]
[1768231327997,3.37821944,3115.8,3113.7,0.16077]
[1768231328299,4.33806517,3115.5,3113.7,0.16077]
[1768231328504,1.12306517,3115.2,3113.1,0.1608]
[1768231328696,1.12306517,3115.2,3113.2,0.16079]
[1768231328896,4.34062461,3115.8,3113.9,0.16076]
[1768231329098,4.519,3115.7,3113.9,0.16076]
[1768231329399,4.33806517,3115.5,3113.5,0.16078]
[1768231329898,1.12306517,3115.5,3113.5,1.1547015]
[1768231330106,4.519,3115.4,3113.9,0.16076]
[1768231330600,0.00255944,3115.8,3114.0,0.16075]
[1768231330601,1.305,3115.3,3114.0,0.16075]
[1768231332908,1.304,3115.2,3114.0,0.16075]
[1768231333306,1.05195066,3115.7,3113.5,1.1547015]
[1768231333508,1.05195066,3115.5,3113.6,0.16077]
[1768231333806,1.21264066,3115.3,3113.1,1.21550114]
[1768231334106,1.21264066,3115.3,3113.3,0.16079]
[1768231334409,4.518,3115.2,3113.3,0.16079]
[1768231335107,1.05195066,3115.3,3113.1,1.05470114]
[1768231335312,4.518,3115.2,3113.6,0.16077]
[1768231335914,4.518,3115.2,3113.7,0.16077]
[1768231336108,4.518,3115.2,3113.8,0.16076]
[1768231336412,1.304,3115.1,3113.8,0.16076]
[1768231336813,1.0545101,3115.8,3114.1,0.16075]
[1768231337013,1.304,3115.7,3114.1,0.16075]
[1768231338018,2.35595066,3115.7,3114.1,0.16075]
[1768231338518,1.05195066,3115.6,3114.1,0.16075]
[1768231339213,1.05195066,3115.6,3113.5,1.05470114]
[1768231339419,1.05195066,3115.6,3113.4,0.16078]
[1768231339420,1.05195066,3115.2,3113.4,0.16078]
[1768231339615,1.05195066,3115.1,3113.4,0.16078]
[1768231339811,1.305,3115.0,3113.4,0.16078]
[1768231340012,4.519,3115.0,3113.4,0.16078]
[1768231340611,5.57095066,3115.0,3113.4,0.16078]
[1768231340810,1.05195066,3114.7,3112.9,1.05470114]
[1768231341021,1.05195066,3114.7,3112.8,0.16081]
[1768231341220,3.215,3115.1,3113.1,0.1608]
[1768231341518,1.05195066,3114.9,3113.1,0.1608]
[1768231341925,1.05195066,3114.9,3112.5,2.14511581]
[1768231342221,3.19334983,3114.9,3112.5,0.16442664]
[1768231342418,1.05195066,3113.3,3111.1,1.13273004]
[1768231342616,3.03263983,3112.9,3111.1,1.13273004]
[1768231342923,1.305,3112.8,3111.5,1.98068917]
[1768231343124,1.05195066,3113.9,3111.6,1.05470114]
[1768231343322,4.519,3113.8,3111.6,1.05470114]
[1768231343523,1.05195066,3113.7,3111.6,1.05776956]
[1768231345521,1.305,3113.6,3112.0,3.03539031]
[1768231345927,1.305,3113.6,3112.1,1.05470114]
[1768231346424,0.00378173,3113.8,3112.5,1.98068917]
[1768231347332,0.00378173,3113.8,3112.6,1.05470114]
[1768231347529,1.305,3114.3,3112.6,1.05470114]
[1768231348431,1.3074261,3114.3,3112.6,1.05470114]
[1768231349330,1.05195066,3114.2,3112.5,0.16083]
[1768231349728,3.215,3114.1,3111.6,1.05776956]
[1768231349932,1.05195066,3114.2,3111.9,1.21556114]
[1768231350330,1.05195066,3114.2,3112.1,0.16085]
[1768231350537,1.3074261,3114.3,3112.6,3.03539031]
[1768231350737,1.3074261,3114.3,3112.6,3.19621031]
[1768231351034,1.3074261,3114.3,3112.6,1.21552114]
[1768231351533,1.3074261,3114.3,3112.7,0.16082]
[1768231352333,1.3074261,3114.3,3112.6,1.05470114]
[1768231352634,1.3074261,3114.3,3112.8,0.16081]
[1768231353134,0.0024261,3114.3,3112.8,0.16081]
[1768231354633,0.8031913,3114.3,3112.8,0.16081]
[1768231354939,0.8031913,3114.3,3112.0,1.05470114]
[1768231355237,0.8031913,3114.3,3112.3,0.16084]
[1768231356029,0.8007652,3113.7,3111.6,0.16393842]
[1768231356238,0.8007652,3113.3,3111.6,0.00306842]
[1768231357225,0.8007652,3113.3,3111.6,0.16394842]
[1768231357430,1.305,3113.2,3111.6,0.81623275]
[1768231357940,1.0,3114.0,3112.3,0.16084]
[1768231358231,1.0,3114.0,3112.1,0.81316433]
[1768231358435,1.0,3114.0,3111.6,9.21806842]
[1768231358436,1.0,3114.0,3112.9,0.16081]
[1768231359039,1.0,3114.0,3112.8,0.81316433]
[1768231360340,1.0,3114.0,3113.1,0.1608]
[1768231362643,1.0,3114.0,3112.5,0.16083]
[1768231364841,1.0,3114.0,3112.6,0.16082]
[1768231366647,1.0,3114.0,3112.7,0.16082]
[1768231366949,1.0,3114.0,3112.9,0.16081]
[1768231369049,1.0,3114.0,3113.1,0.16079]
[1768231369649,0.9614452,3115.4,3113.3,0.81316433]
[1768231369847,0.8007652,3115.4,3114.1,0.16075]
[1768231370250,1.031,3115.6,3113.8,0.81316433]
[1768231370451,1.031,3115.6,3114.5,0.16073]
[1768231370749,1.03369949,3115.6,3114.5,0.16330787]
[1768231371252,1.03369949,3115.6,3114.5,0.00257787]
[1768231372050,1.03369949,3115.6,3114.5,0.16330787]
[1768231372951,0.00269949,3115.6,3114.6,0.16072]
[1768231373449,0.00269949,3115.6,3114.5,0.00257787]
[1768231375058,0.00269949,3115.6,3114.7,0.16072]
[1768231375360,0.00269949,3115.6,3114.8,0.16071]
[1768231375559,1.304,3116.3,3115.0,0.1607]
[1768231376560,1.30689997,3116.3,3115.0,0.1607]
[1768231378655,1.30689997,3116.3,3114.5,0.8157422]
[1768231379056,1.30689997,3116.3,3114.6,0.16072]
[1768231379254,0.8007652,3116.2,3114.6,0.16072]
[1768231379862,1.30689997,3116.3,3114.7,0.16072]
[1768231380159,0.00289997,3116.3,3114.7,0.16072]
[1768231380657,0.8007652,3116.1,3114.5,0.00257787]
[1768231380855,0.00289997,3116.3,3114.5,0.00257787]
[1768231381049,0.00289997,3116.3,3115.0,0.1607]
[1768231382451,0.00289997,3116.3,3115.0,0.97386433]
[1768231383158,0.00289997,3116.3,3115.3,0.16068]
[1768231383956,0.80366517,3116.3,3114.7,0.16072]
[1768231385659,0.60591741,3116.1,3114.5,0.00257787]
[1768231386161,0.60591741,3115.7,3113.5,0.63621344]
[1768231386361,0.60591741,3115.7,3113.4,0.16078]
[1768231386659,0.60591741,3115.7,3112.9,0.63621344]
[1768231386660,0.60591741,3115.3,3112.9,0.63621344]
[1768231386864,0.60591741,3115.0,3112.7,0.16082]
[1768231387056,0.60591741,3115.0,3112.7,0.16365553]
[1768231387759,0.76661741,3115.0,3112.7,0.16365553]
[1768231387960,0.60591741,3114.9,3112.7,0.16365553]
[1768231388162,0.60591741,3114.8,3112.7,0.16365553]
[1768231388360,9.82091741,3114.8,3112.7,0.00283553]
[1768231388563,0.60591741,3114.5,3112.7,0.00283553]
[1768231391158,0.60591741,3114.3,3112.7,0.00283553]
[1768231391361,0.60591741,3114.1,3112.7,0.00283553]
[1768231391558,3.81991741,3114.0,3112.7,0.00283553]
[1768231391757,0.60591741,3113.9,3112.7,0.00283553]
[1768231393969,1.304,3113.8,3112.7,0.00283553]
[1768231396064,0.53835774,3113.7,3111.7,0.16087]
[1768231396566,1.304,3113.8,3112.3,0.16084]
[1768231396767,1.304,3113.8,3112.3,0.72915974]
[1768231396970,1.304,3113.8,3112.3,0.16084]
[1768231397163,1.304,3113.8,3112.4,0.16084]
[1768231397358,1.304,3113.8,3112.6,0.16083]
[1768231398063,1.304,3113.8,3112.3,0.00334025]
[1768231398260,1.84235774,3113.8,3112.3,0.00334025]
[1768231398971,0.53835774,3113.7,3112.3,0.00334025]
[1768231399470,1.304,3113.8,3112.3,0.00334025]
[1768231399775,1.304,3113.8,3112.3,0.16418025]
[1768231400375,0.00267867,3114.1,3112.6,0.16082]
[1768231400577,1.305,3114.0,3112.6,0.16082]
[1768231400873,1.305,3114.0,3112.5,0.56831974]
[1768231401075,1.305,3114.0,3113.0,0.1608]
[1768231402180,1.305,3114.0,3113.1,0.1608]
[1768231402981,0.00267867,3114.1,3112.5,0.56831974]
[1768231403470,0.00267867,3114.1,3113.0,0.1608]
[1768231403671,0.00267867,3114.1,3112.7,0.56831974]
[1768231404476,0.00267867,3114.1,3113.3,0.16079]
[1768231404976,0.00267867,3114.1,3112.4,0.56831974]
[1768231405374,0.00267867,3114.1,3112.7,0.16082]
[1768231405577,0.54103641,3114.1,3112.3,0.00334025]
[1768231405970,0.00267867,3114.1,3112.8,0.16081]
[1768231406382,0.00267867,3114.1,3113.0,0.1608]
[1768231406679,0.00267867,3114.1,3113.1,0.1608]
[1768231407673,1.305,3114.7,3113.5,0.16078]
[1768231408780,1.3080108,3114.7,3113.5,0.16078]
[1768231411480,0.0030108,3114.7,3113.5,0.72909974]
[1768231412184,0.0030108,3114.7,3113.6,0.16077]
[1768231414884,0.0030108,3114.7,3113.7,0.16077]
[1768231415587,0.0030108,3114.7,3113.7,0.4889431]
[1768231415779,1.306,3115.1,3113.9,0.4889431]
[1768231415973,3.215,3115.5,3113.9,0.4889431]
[1768231416484,3.215,3115.5,3113.7,0.16077]
[1768231416684,0.44695861,3115.4,3113.7,0.16077]
[1768231416887,0.44695861,3115.3,3113.7,0.16077]
[1768231417187,3.215,3115.2,3113.7,0.16077]
[1768231417487,3.66195861,3115.2,3113.7,0.16077]
[1768231418784,3.66195861,3115.1,3113.7,0.16077]
[1768231418989,0.44695861,3115.0,3113.7,0.16077]
[1768231419180,1.306,3114.9,3113.7,0.16077]
[1768231419885,1.306,3114.9,3113.8,0.16076]
[1768231421190,1.306,3114.9,3113.2,0.6497331]
[1768231421385,1.306,3114.9,3113.3,0.4889431]
[1768231421579,1.306,3114.9,3113.8,0.16076]
[1768231422893,1.306,3114.9,3113.9,0.16076]
[1768231423281,0.00270607,3115.5,3114.6,0.16072]
[1768231423480,0.00270607,3115.5,3114.6,0.16311612]
[1768231427994,0.00270607,3115.5,3114.7,0.16071]
[1768231429599,0.00270607,3115.5,3114.8,0.16071]
[1768231429992,0.44695861,3116.4,3114.9,0.16071]
[1768231430291,3.214,3116.6,3114.9,0.16071]
[1768231431103,3.21674908,3116.6,3114.9,0.16071]
[1768231431300,3.21674908,3116.6,3115.2,0.16069]
[1768231431508,0.00274908,3116.6,3115.3,0.16068]
[1768231432702,0.00274908,3116.6,3115.0,0.4889431]
[1768231432897,0.00274908,3116.6,3115.6,0.16067]
[1768231433304,0.00274908,3116.6,3115.5,0.4889431]
[1768231433503,0.00274908,3116.6,3115.9,0.16065]
[1768231436006,0.00274908,3116.6,3115.3,0.16068]
[1768231436611,0.00274908,3116.6,3115.0,0.4889431]
[1768231437507,0.00274908,3116.6,3115.6,0.16067]
[1768231437811,0.00274908,3116.6,3115.6,0.6496131]
[1768231438302,0.00274908,3116.6,3115.7,0.16066]
[1768231439513,0.00274908,3116.6,3115.6,0.4889431]
[1768231440013,0.00274908,3116.6,3116.0,0.16065]
[1768231440213,1.305,3117.1,3116.0,0.16065]
[1768231440407,0.41583,3117.4,3116.4,0.16063]
[1768231441018,0.44695861,3117.3,3115.8,0.16066]
[1768231441312,3.66195861,3117.1,3115.2,0.16069]
[1768231441512,3.66195861,3117.1,3115.3,0.16068]
[1768231442011,3.66195861,3117.1,3114.6,0.00239612]
[1768231442012,3.66195861,3117.1,3115.5,0.16067]
[1768231442214,0.00236375,3117.3,3115.8,0.6496031]
[1768231442409,0.00236375,3117.3,3115.8,0.4889431]
[1768231442610,0.00236375,3117.3,3116.2,0.16064]
[1768231442805,0.00236375,3117.3,3116.7,0.16061]
[1768231443114,0.41583,3117.4,3116.7,0.16061]
[1768231444014,0.41881709,3117.4,3116.7,0.16061]
[1768231444514,1.305,3118.2,3116.8,0.3667766]
[1768231445513,1.30778645,3118.2,3116.8,0.36916602]
[1768231445712,3.215,3119.1,3117.5,0.16057]
[1768231446015,1.304,3119.6,3117.8,0.16056]
[1768231446201,1.304,3119.6,3117.9,0.16055]
[1768231446608,1.304,3119.6,3117.3,0.3667766]
[1768231446609,1.67058201,3119.6,3117.3,0.3667766]
[1768231446816,3.215,3119.3,3117.3,0.5273566]
[1768231447112,0.36658201,3119.4,3117.3,0.76546885]
[1768231447308,0.36658201,3119.4,3117.5,0.16057]
[1768231448017,0.36658201,3119.4,3117.6,0.5273466]
[1768231448916,0.36658201,3119.4,3117.6,0.16057]
[1768231454218,1.30800551,3119.6,3117.7,0.49810368]
[1768231455121,0.00400551,3119.6,3118.3,0.49807368]
[1768231455416,0.00400551,3119.6,3118.4,0.49807368]
[1768231455617,0.00400551,3119.6,3118.4,0.33754368]
[1768231456317,3.211,3120.5,3118.9,0.33754368]
[1768231456518,3.211,3120.5,3119.0,0.16049]
[1768231456817,3.211,3120.5,3119.0,0.49803368]